fUST/lending_fUST_20240216
["ID","MTS","AMOUNT","RATE_DAILY","PERIOD"]
[314167419,1708039840274,-981.92,0.00021917,2]
[314167421,1708039840283,-557.13823248,0.00021917,2]
[314167423,1708039840292,-500.0,0.00021917,2]
[314167425,1708039840302,-1000.0,0.00021917,5]
[314167426,1708039840310,-516.94149683,0.00021917,2]
[314167428,1708039840319,-500.0,0.00021917,2]
[314167430,1708039840328,-500.0,0.00021917,2]
[314167432,1708039840337,-500.0,0.00021917,2]
[314167434,1708039840346,-512.11252895,0.00021917,2]
[314167436,1708039840355,-582.68564277,0.00021917,2]
[314167438,1708039840364,-500.0,0.00021917,2]
[314167440,1708039840373,-500.0,0.00021917,2]
[314167442,1708039840382,-437.52618809,0.00021917,2]
[314167444,1708039840391,-500.0,0.00021917,2]
[314167446,1708039840399,-500.0,0.00021917,2]
[314167448,1708039840408,-500.0,0.00021917,2]
[314167450,1708039840417,-638.34637956,0.00021917,2]
[314167452,1708039840426,-500.0,0.00021917,2]
[314167453,1708039840436,-500.0,0.00021917,2]
[314167455,1708039840445,-500.0,0.00021917,2]
[314167457,1708039840454,-507.21096205,0.00021917,2]
[314167459,1708039840463,-500.0,0.00021917,2]
[314167461,1708039840472,-500.0,0.00021917,2]
[314167463,1708039840481,-500.0,0.00021917,2]
[314167465,1708039840491,-500.0,0.00021917,2]
[314167467,1708039840499,-500.0,0.00021917,2]
[314167469,1708039840508,-328.32247603,0.00021917,2]
[314167470,1708039840517,-1947.81,0.00021917,2]
[314167472,1708039840526,-507.50151569,0.00021917,2]
[314167475,1708039840538,-260.37284919,0.00021917,2]
[314167477,1708039840547,-500.0,0.00021917,2]
[314167479,1708039840556,-151.0,0.00021917,2]
[314167480,1708039840565,-151.0,0.00021917,2]
[314167482,1708039840574,-500.0,0.00021917,2]
[314167484,1708039840583,-504.12580923,0.00021917,2]
[314167486,1708039840591,-500.0,0.00021917,2]
[314167488,1708039840600,-500.0,0.00021917,2]
[314167490,1708039840610,-511.75666933,0.00021917,2]
[314167492,1708039840620,-989.49,0.00021917,2]
[314167494,1708039840629,-516.26871262,0.00021917,2]
[314167496,1708039840639,-500.0,0.00021917,2]
[314167498,1708039840649,-500.0,0.00021917,2]
[314167500,1708039840658,-516.39323085,0.00021917,2]
[314167502,1708039840669,-506.84728892,0.00021917,2]
[314167504,1708039840679,-500.0,0.00021917,2]
[314167506,1708039840688,-500.0,0.00021917,2]
[314167508,1708039840697,-500.0,0.00021917,2]
[314167510,1708039840706,-500.0,0.00021917,2]
[314167512,1708039840715,-385.67452166,0.00021917,2]
[314167514,1708039840724,-500.0,0.00021917,2]
[314167515,1708039840733,-501.76829055,0.00021917,2]
[314167516,1708039840742,-500.0,0.00021917,2]
[314167517,1708039840750,-500.0,0.00021917,2]
[314167518,1708039840760,-746.79,0.00021917,2]
[314167519,1708039840769,-500.0,0.00021917,2]
[314167520,1708039840778,-510.68739051,0.00021917,2]
[314167521,1708039840787,-500.0,0.00021917,2]
[314167522,1708039840796,-505.49748624,0.00021917,2]
[314167523,1708039840806,-500.0,0.00021917,2]
[314167524,1708039840815,-506.57653874,0.00021917,2]
[314167525,1708039840824,-500.0,0.00021917,2]
[314167526,1708039840833,-164.95275366,0.00021917,2]
[314167527,1708039840842,-500.0,0.00021917,2]
[314167528,1708039840850,-495.88183261,0.00021917,2]
[314167529,1708039840859,-600.56,0.00021917,2]
[314167530,1708039840868,-596.22880641,0.00021917,2]
[314167531,1708039840877,-397.46061973,0.00021917,2]
[314167532,1708039840886,-567.84500468,0.00021917,2]
[314167533,1708039840895,-1109.46,0.00021917,2]
[314167534,1708039840903,-413.84859756,0.00021917,2]
[314167536,1708039840913,-710.56,0.00021917,2]
[314167537,1708039840922,-505.61326552,0.00021917,2]
[314167539,1708039840932,-500.0,0.00021917,2]
[314167548,1708039841002,-660.38,0.00021917,2]
[314167550,1708039841012,-500.0,0.00021917,2]
[314167551,1708039841021,-894.98,0.00021917,2]
[314167553,1708039841030,-500.0,0.00021917,2]
[314167555,1708039841039,-688.57,0.00021917,2]
[314167557,1708039841048,-266.15669203,0.00021917,2]
[314167559,1708039841058,-500.0,0.00021917,2]
[314167561,1708039841066,-500.0,0.00021917,2]
[314167563,1708039841076,-500.0,0.00021917,2]
[314167565,1708039841085,-624.8,0.00021917,2]
[314167567,1708039841094,-500.0,0.00021917,2]
[314167569,1708039841104,-500.0,0.00021917,2]
[314167571,1708039841114,-500.0,0.00021917,2]
[314167573,1708039841123,-519.17079685,0.00021917,2]
[314167575,1708039841132,-500.0,0.00021917,2]
[314167577,1708039841142,-500.0,0.00021917,2]
[314167579,1708039841151,-500.0,0.00021917,2]
[314167581,1708039841160,-470.3612371,0.00021917,2]
[314167583,1708039841169,-500.0,0.00021917,2]
[314167585,1708039841178,-500.0,0.00021917,2]
[314167587,1708039841188,-500.0,0.00021917,2]
[314167589,1708039841199,-535.87278273,0.00021917,2]
[314167591,1708039841208,-9426.82,0.00021917,2]
[314167593,1708039841218,-500.0,0.00021917,2]
[314167595,1708039841227,-1254.76,0.00021917,2]
[314167597,1708039841236,-3723.72,0.00021917,2]
[314167599,1708039841246,-158.51638676,0.00021917,2]
[314167601,1708039841255,-11278.95,0.00021917,2]
[314167603,1708039841264,-502.92808677,0.00021917,2]
[314167605,1708039841275,-502.66022835,0.00021917,2]
[314167607,1708039841284,-500.0,0.00021917,2]
[314167609,1708039841293,-500.0,0.00021917,2]
[314167611,1708039841302,-609.52,0.00021917,2]
[314167613,1708039841311,-500.0,0.00021917,2]
[314167615,1708039841320,-500.0,0.00021917,2]
[314167617,1708039841329,-500.0,0.00021917,2]
[314167618,1708039841338,-3953.53,0.00021917,2]
[314167621,1708039841348,-604.93952717,0.00021917,2]
[314167622,1708039841356,-511.04327284,0.00021917,2]
[314167624,1708039841367,-4014.11,0.00021917,2]
[314167626,1708039841376,-500.0,0.00021917,2]
[314167628,1708039841385,-503.69014299,0.00021917,2]
[314167630,1708039841394,-151.0,0.00021917,2]
[314167632,1708039841402,-151.0,0.00021917,2]
[314167634,1708039841411,-426.08,0.00021917,2]
[314167636,1708039841420,-583.6952767,0.00021917,2]
[314167638,1708039841429,-500.0,0.00021917,2]
[314167640,1708039841439,-502.00753145,0.00021917,2]
[314167642,1708039841448,-1967.44,0.00021917,2]
[314167645,1708039841457,-168.47470284,0.00021917,2]
[314167648,1708039841467,-151.0,0.00021917,2]
[314167650,1708039841475,-151.0,0.00021917,2]
[314167651,1708039841484,-500.0,0.00021917,2]
[314167653,1708039841493,-500.0,0.00021917,2]
[314167655,1708039841502,-3098.38,0.00021917,2]
[314167657,1708039841511,-2101.9,0.00021917,2]
[314167659,1708039841519,-14803.19,0.00021917,2]
[314167661,1708039841529,-500.0,0.00021917,2]
[314167663,1708039841538,-2147.48,0.00021917,2]
[314167665,1708039841547,-500.0,0.00021917,2]
[314167667,1708039841557,-500.0,0.00021917,2]
[314167669,1708039841566,-500.0,0.00021917,2]
[314167671,1708039841575,-459.889157,0.00021917,2]
[314167673,1708039841585,-459.889157,0.00021917,2]
[314167675,1708039841594,-500.0,0.00021917,2]
[314167677,1708039841603,-459.889157,0.00021917,2]
[314167679,1708039841612,-459.889157,0.00021917,2]
[314167681,1708039841621,-500.0,0.00021917,2]
[314167683,1708039841630,-1478.7,0.00021917,2]
[314167685,1708039841639,-1000.0,0.00021917,2]
[314167687,1708039841648,-500.0,0.00021917,2]
[314167690,1708039841658,-520.94030356,0.00021917,2]
[314167691,1708039841667,-500.0,0.00021917,2]
[314167693,1708039841676,-500.0,0.00021917,2]
[314167695,1708039841685,-947.27,0.00021917,2]
[314167697,1708039841694,-500.0,0.00021917,2]
[314167699,1708039841703,-2918.8,0.00021917,2]
[314167701,1708039841712,-208.6232261,0.00021917,2]
[314167703,1708039841722,-500.0,0.00021917,2]
[314167705,1708039841731,-3326.07,0.00021917,2]
[314167707,1708039841740,-500.0,0.00021917,2]
[314167709,1708039841749,-396.931354,0.00021917,2]
[314167712,1708039841759,-500.0,0.00021917,2]
[314167713,1708039841768,-396.931354,0.00021917,2]
[314167715,1708039841777,-396.931354,0.00021917,2]
[314167717,1708039841786,-500.0,0.00021917,2]
[314167720,1708039841795,-396.931354,0.00021917,2]
[314167722,1708039841804,-375.44487099,0.00021917,2]
[314167723,1708039841814,-500.0,0.00021917,2]
[314167725,1708039841823,-547.39344744,0.00021917,2]
[314167727,1708039841832,-500.0,0.00021917,2]
[314167729,1708039841841,-500.0,0.00021917,2]
[314167731,1708039841850,-500.0,0.00021917,2]
[314167734,1708039841860,-1425.62,0.00021917,2]
[314167736,1708039841870,-500.0,0.00021917,2]
[314167737,1708039841879,-500.0,0.00021917,2]
[314167739,1708039841888,-500.0,0.00021917,2]
[314167741,1708039841897,-18100.04,0.00021917,2]
[314167743,1708039841906,-500.0,0.00021917,2]
[314167745,1708039841915,-509.43438541,0.00021917,2]
[314167747,1708039841924,-500.0,0.00021917,2]
[314167749,1708039841934,-935.84,0.00021917,2]
[314167751,1708039841943,-500.0,0.00021917,2]
[314167753,1708039841952,-533.23,0.00021917,2]
[314167755,1708039841961,-2823.76,0.00021917,2]
[314167757,1708039841970,-500.0,0.00021917,2]
[314167759,1708039841979,-1328.79,0.00021917,2]
[314167761,1708039841988,-517.88,0.00021917,2]
[314167763,1708039841997,-16468.03,0.00021917,2]
[314167765,1708039842007,-500.0,0.00021917,2]
[314167767,1708039842015,-14374.16,0.00021917,2]
[314167769,1708039842024,-500.0,0.00021917,2]
[314167771,1708039842034,-500.0,0.00021917,2]
[314167773,1708039842043,-500.0,0.00021917,2]
[314167775,1708039842052,-500.0,0.00021917,2]
[314167777,1708039842062,-500.0,0.00021917,2]
[314167779,1708039842071,-543.30693965,0.00021917,2]
[314167781,1708039842081,-500.0,0.00021917,2]
[314167783,1708039842090,-500.0,0.00021917,2]
[314167785,1708039842099,-500.0,0.00021917,2]
[314167787,1708039842108,-500.0,0.00021917,2]
[314167789,1708039842118,-500.0,0.00021917,2]
[314167791,1708039842126,-500.0,0.00021917,2]
[314167793,1708039842135,-536.17297969,0.00021917,2]
[314167795,1708039842144,-500.0,0.00021917,2]
[314167797,1708039842153,-500.0,0.00021917,2]
[314167799,1708039842162,-6241.88,0.00021917,2]
[314167801,1708039842171,-611.66329015,0.00021917,2]
[314167803,1708039842181,-500.0,0.00021917,2]
[314167805,1708039842191,-23583.74,0.00021917,2]
[314167813,1708039842258,-500.0,0.00021917,2]
[314167815,1708039842267,-2340.4,0.00021917,2]
[314167817,1708039842278,-505.73434112,0.00021917,2]
[314167819,1708039842287,-500.0,0.00021917,2]
[314167821,1708039842297,-500.0,0.00021917,2]
[314167823,1708039842307,-796.71,0.00021917,2]
[314167825,1708039842316,-796.71,0.00021917,2]
[314167827,1708039842326,-796.71,0.00021917,2]
[314167829,1708039842335,-796.71,0.00021917,2]
[314167831,1708039842344,-500.0,0.00021917,2]
[314167833,1708039842353,-796.71,0.00021917,2]
[314167835,1708039842361,-796.71,0.00021917,2]
[314167837,1708039842370,-826.92,0.00021917,2]
[314167839,1708039842379,-500.0,0.00021917,2]
[314167841,1708039842388,-1742.09,0.00021917,2]
[314167843,1708039842399,-500.0,0.00021917,2]
[314167845,1708039842408,-502.26498,0.00021917,2]
[314167847,1708039842417,-796.71,0.00021998,2]
[314167849,1708039842426,-796.71,0.00021998,2]
[314167851,1708039842435,-796.71,0.00021998,2]
[314167853,1708039842444,-796.71,0.00021998,2]
[314167855,1708039842453,-459.889157,0.00021999,2]
[314167857,1708039842462,-459.889157,0.00021999,2]
[314167859,1708039842471,-396.931354,0.00021999,2]
[314167861,1708039842480,-396.931354,0.00021999,2]
[314167863,1708039842489,-796.71,0.00021999,2]
[314167865,1708039842498,-796.71,0.00021999,2]
[314167867,1708039842507,-796.71,0.00021999,2]
[314167869,1708039842515,-796.71,0.00021999,2]
[314167871,1708039842524,-146122.536113,0.00022,7]
[314167873,1708039842533,-151.0,0.00022,2]
[314167875,1708039842542,-151.0,0.00022,2]
[314167877,1708039842551,-151.0,0.00022,2]
[314167879,1708039842562,-151.0,0.00022,2]
[314167881,1708039842570,-459.889157,0.00022,2]
[314167883,1708039842579,-459.889157,0.00022,2]
[314167885,1708039842588,-396.931354,0.00022,2]
[314167887,1708039842597,-396.931354,0.00022,2]
[314167889,1708039842606,-796.71,0.00022,2]
[314167892,1708039842615,-796.71,0.00022,2]
[314167894,1708039842624,-796.71,0.00022,2]
[314167895,1708039842633,-796.71,0.00022,2]
[314167897,1708039842642,-796.71,0.00022,2]
[314167899,1708039842651,-796.71,0.00022,2]
[314167901,1708039842661,-796.71,0.00022,2]
[314167904,1708039842670,-796.71,0.00022,2]
[314167906,1708039842679,-796.71,0.00022,2]
[314167909,1708039842688,-796.80003378,0.00022,2]
[314167911,1708039842697,-151.0,0.00022001,2]
[314167914,1708039842706,-230.523565,0.00022001,2]
[314167916,1708039842715,-151.0,0.00022001,2]
[314167918,1708039842725,-151.0,0.00022001,2]
[314167922,1708039842734,-459.889157,0.00022001,2]
[314167925,1708039842743,-459.889157,0.00022001,2]
[314167929,1708039842752,-396.931354,0.00022001,2]
[314167933,1708039842761,-396.931354,0.00022001,2]
[314167935,1708039842770,-276000.0,0.00022001,2]
[314167938,1708039842779,-500.0,0.000221,2]
[314167941,1708039842790,-500.0,0.000221,2]
[314167944,1708039842799,-579.0,0.000221,2]
[314167947,1708039842809,-500.0,0.00022101,2]
[314167950,1708039842818,-500.0,0.0002211,2]
[314167953,1708039842827,-500.0,0.0002211,2]
[314167957,1708039842836,-500.0,0.0002211,2]
[314167960,1708039842845,-500.0,0.0002211,2]
[314167962,1708039842854,-500.0,0.0002211,2]
[314167965,1708039842864,-500.0,0.0002211,2]
[314167968,1708039842872,-499.96128475,0.0002211,2]
[314167970,1708039842882,-500.0,0.0002211,2]
[314167972,1708039842891,-500.0,0.0002211,2]
[314167974,1708039842899,-500.0,0.0002211,2]
[314167976,1708039842908,-500.0,0.0002211,2]
[314167978,1708039842917,-500.0,0.0002211,2]
[314167980,1708039842926,-500.0,0.0002211,2]
[314167982,1708039842935,-197.33585836,0.0002211,2]
[314167984,1708039842945,-500.0,0.0002211,2]
[314167986,1708039842954,-500.0,0.0002211,2]
[314167988,1708039842963,-500.0,0.0002211,2]
[314167990,1708039842972,-500.0,0.0002211,2]
[314167992,1708039842982,-500.0,0.0002211,2]
[314167994,1708039842991,-500.0,0.0002211,2]
[314167996,1708039843000,-500.0,0.0002211,2]
[314167998,1708039843009,-500.0,0.0002211,2]
[314168000,1708039843018,-500.0,0.0002211,2]
[314168002,1708039843027,-327.75875897,0.0002211,2]
[314168004,1708039843037,-500.0,0.0002211,2]
[314168006,1708039843046,-500.0,0.0002211,2]
[314168008,1708039843055,-500.0,0.0002211,2]
[314168010,1708039843065,-628.25507072,0.0002211,2]
[314168012,1708039843074,-500.0,0.0002211,2]
[314168014,1708039843084,-493.02117502,0.0002211,2]
[314168016,1708039843093,-500.0,0.0002211,2]
[314168018,1708039843102,-500.0,0.0002211,2]
[314168020,1708039843112,-500.0,0.0002211,2]
[314168022,1708039843121,-253.39231964,0.00022111,2]
[314168024,1708039843130,-500.0,0.00022111,2]
[314168026,1708039843140,-500.0,0.00022111,2]
[314168028,1708039843149,-500.0,0.00022111,2]
[314168030,1708039843158,-500.0,0.00022111,2]
[314168032,1708039843167,-500.0,0.00022111,2]
[314168034,1708039843176,-519.75741861,0.00022111,2]
[314168036,1708039843185,-500.0,0.00022111,2]
[314168038,1708039843197,-396.51386456,0.00022111,2]
[314168040,1708039843206,-500.0,0.00022111,2]
[314168042,1708039843215,-502.92013251,0.00022111,2]
[314168043,1708039843224,-620.72343672,0.00022111,2]
[314168044,1708039843234,-500.0,0.00022111,2]
[314168045,1708039843243,-500.0,0.00022111,2]
[314168046,1708039843252,-500.0,0.00022111,2]
[314168048,1708039843261,-500.0,0.00022111,2]
[314168050,1708039843271,-500.0,0.00022111,2]
[314168052,1708039843281,-500.0,0.00022111,2]
[314168054,1708039843290,-500.0,0.00022111,2]
[314168056,1708039843299,-450.210329,0.00022111,2]
[314168058,1708039843309,-602.81264885,0.00022111,2]
[314168060,1708039843318,-532.59,0.00022111,2]
[314168063,1708039843331,-500.0,0.00022111,2]
[314168065,1708039843341,-500.0,0.00022111,2]
[314168067,1708039843349,-500.0,0.00022119,2]
[314168075,1708039843413,-500.0,0.00022119,2]
[314168077,1708039843422,-500.0,0.00022119,2]
[314168079,1708039843431,-500.0,0.00022119,2]
[314168081,1708039843440,-500.0,0.0002212,2]
[314168083,1708039843449,-500.0,0.00022121,2]
[314168085,1708039843459,-500.0,0.00022121,2]
[314168087,1708039843467,-500.0,0.00022121,2]
[314168089,1708039843476,-500.0,0.00022121,2]
[314168091,1708039843485,-500.0,0.00022121,2]
[314168092,1708039843495,-347.51683518,0.00022121,2]
[314168095,1708039843505,-5000.0,0.00022122,2]
[314168097,1708039843514,-5000.0,0.00022122,2]
[314168098,1708039843525,-151.0,0.00022189,2]
[314168101,1708039843534,-151.0,0.00022189,2]
[314168103,1708039843544,-151.0,0.0002219,2]
[314168105,1708039843553,-500.0,0.0002219,2]
[314168106,1708039843564,-1072.62,0.00022191,2]
[314168109,1708039843575,-500.0,0.00022191,2]
[314168110,1708039843587,-500.0,0.00022191,2]
[314168113,1708039843597,-500.0,0.00022191,2]
[314168114,1708039843607,-500.0,0.00022191,2]
[314168116,1708039843616,-575.26411866,0.00022191,2]
[314168119,1708039843625,-500.0,0.00022191,2]
[314168120,1708039843635,-500.0,0.00022191,2]
[314168123,1708039843645,-500.0,0.00022191,2]
[314168125,1708039843655,-500.0,0.00022191,2]
[314168126,1708039843666,-376.30669762,0.00022191,2]
[314168128,1708039843677,-500.0,0.00022191,2]
[314168130,1708039843687,-500.0,0.00022191,2]
[314168132,1708039843696,-1237.71,0.00022191,2]
[314168135,1708039843706,-500.0,0.00022191,2]
[314168137,1708039843716,-500.0,0.00022191,2]
[314168139,1708039843725,-532.10150668,0.00022191,2]
[314168140,1708039843734,-500.0,0.00022191,2]
[314168142,1708039843743,-491.43111383,0.00022191,2]
[314168145,1708039843752,-500.0,0.00022191,2]
[314168147,1708039843761,-3540.74,0.00022191,2]
[314168149,1708039843770,-239.15285987,0.00022191,2]
[314168151,1708039843780,-1999.91,0.00022191,2]
[314168153,1708039843789,-422.59488046,0.00022191,2]
[314168155,1708039843799,-2180.05,0.00022191,2]
[314168156,1708039843808,-500.0,0.00022191,2]
[314168159,1708039843817,-589.57474798,0.00022191,2]
[314168161,1708039843827,-234.416285,0.00022191,2]
[314168163,1708039843836,-292.01398535,0.00022191,2]
[314168164,1708039843845,-500.0,0.00022191,2]
[314168167,1708039843856,-3504.95,0.00022191,2]
[314168168,1708039843865,-500.0,0.00022191,2]
[314168171,1708039843875,-500.0,0.00022191,2]
[314168173,1708039843884,-237.61082891,0.00022191,2]
[314168175,1708039843894,-592.75,0.00022191,2]
[314168176,1708039843903,-513.49465478,0.00022191,2]
[314168178,1708039843914,-500.0,0.00022191,2]
[314168180,1708039843923,-500.0,0.00022191,2]
[314168182,1708039843932,-339.19159002,0.00022191,2]
[314168184,1708039843941,-500.0,0.00022191,2]
[314168186,1708039843950,-500.0,0.00022191,2]
[314168188,1708039843960,-500.0,0.00022191,2]
[314168190,1708039843969,-582.91,0.00022191,2]
[314168192,1708039843980,-500.0,0.00022191,2]
[314168194,1708039843990,-500.0,0.00022191,2]
[314168196,1708039843999,-622.63376285,0.00022191,2]
[314168199,1708039844009,-500.0,0.00022191,2]
[314168200,1708039844019,-500.0,0.00022191,2]
[314168202,1708039844029,-901.11,0.00022191,2]
[314168204,1708039844038,-2059.32,0.00022191,2]
[314168207,1708039844047,-544.4013891,0.00022191,2]
[314168209,1708039844057,-500.0,0.00022191,2]
[314168210,1708039844066,-500.0,0.00022191,2]
[314168212,1708039844075,-500.0,0.00022191,2]
[314168214,1708039844085,-719.02,0.00022191,2]
[314168216,1708039844095,-500.0,0.00022191,2]
[314168218,1708039844105,-981.92,0.00022191,2]
[314168220,1708039844114,-1000.0,0.00022191,5]
[314168222,1708039844123,-500.0,0.00022191,2]
[314168225,1708039844132,-500.0,0.00022191,2]
[314168226,1708039844141,-500.0,0.00022191,2]
[314168228,1708039844150,-503.66058879,0.00022191,2]
[314168230,1708039844159,-500.0,0.00022191,2]
[314168232,1708039844168,-415.01598404,0.00022191,2]
[314168234,1708039844177,-500.0,0.00022191,2]
[314168237,1708039844187,-500.0,0.00022191,2]
[314168238,1708039844200,-531.7811792,0.00022191,2]
[314168241,1708039844209,-500.0,0.00022191,2]
[314168242,1708039844218,-500.0,0.00022191,2]
[314168244,1708039844228,-500.0,0.00022191,2]
[314168246,1708039844237,-500.0,0.00022191,2]
[314168248,1708039844248,-500.0,0.00022191,2]
[314168250,1708039844258,-510.52661764,0.00022191,2]
[314168252,1708039844267,-500.0,0.00022191,2]
[314168254,1708039844277,-1947.81,0.00022191,2]
[314168256,1708039844288,-511.07894119,0.00022191,2]
[314168258,1708039844297,-565.12591649,0.00022191,2]
[314168260,1708039844307,-500.0,0.00022191,2]
[314168262,1708039844316,-500.0,0.00022191,2]
[314168265,1708039844325,-989.49,0.00022191,2]
[314168266,1708039844334,-550.27637508,0.00022191,2]
[314168268,1708039844344,-554.07303476,0.00022191,2]
[314168270,1708039844353,-500.0,0.00022191,2]
[314168272,1708039844362,-500.0,0.00022191,2]
[314168274,1708039844371,-500.0,0.00022191,2]
[314168276,1708039844381,-500.0,0.00022191,2]
[314168279,1708039844391,-500.0,0.00022191,2]
[314168281,1708039844400,-500.0,0.00022191,2]
[314168282,1708039844410,-746.79,0.00022191,2]
[314168285,1708039844421,-500.0,0.00022191,2]
[314168287,1708039844431,-500.0,0.00022191,2]
[314168289,1708039844440,-557.04962915,0.00022191,2]
[314168290,1708039844449,-500.0,0.00022191,2]
[314168292,1708039844459,-500.0,0.00022191,2]
[314168300,1708039844516,-600.56,0.00022191,2]
[314168302,1708039844531,-1109.46,0.00022191,2]
[314168304,1708039844540,-710.56,0.00022191,2]
[314168306,1708039844549,-500.0,0.00022191,2]
[314168308,1708039844558,-660.38,0.00022191,2]
[314168310,1708039844567,-500.0,0.00022191,2]
[314168312,1708039844576,-894.98,0.00022191,2]
[314168314,1708039844585,-500.0,0.00022191,2]
[314168316,1708039844594,-688.57,0.00022191,2]
[314168318,1708039844604,-500.0,0.00022191,2]
[314168320,1708039844613,-500.0,0.00022191,2]
[314168322,1708039844622,-500.0,0.00022191,2]
[314168324,1708039844631,-624.8,0.00022191,2]
[314168326,1708039844640,-500.0,0.00022191,2]
[314168328,1708039844649,-500.0,0.00022191,2]
[314168330,1708039844658,-500.0,0.00022191,2]
[314168332,1708039844667,-500.0,0.00022191,2]
[314168334,1708039844676,-430.24803241,0.00022191,2]
[314168336,1708039844686,-500.0,0.00022191,2]
[314168338,1708039844694,-500.0,0.00022191,2]
[314168340,1708039844703,-500.0,0.00022191,2]
[314168342,1708039844713,-9426.82,0.00022191,2]
[314168344,1708039844722,-500.0,0.00022191,2]
[314168346,1708039844731,-1254.76,0.00022191,2]
[314168347,1708039844740,-3723.72,0.00022191,2]
[314168349,1708039844749,-11278.95,0.00022191,2]
[314168351,1708039844758,-500.0,0.00022191,2]
[314168353,1708039844768,-530.57541768,0.00022191,2]
[314168355,1708039844778,-609.52,0.00022191,2]
[314168357,1708039844788,-518.16020758,0.00022191,2]
[314168359,1708039844797,-403.79557639,0.00022191,2]
[314168362,1708039844807,-212.18676146,0.00022191,2]
[314168363,1708039844817,-3953.53,0.00022191,2]
[314168365,1708039844826,-4014.11,0.00022191,2]
[314168367,1708039844836,-500.0,0.00022191,2]
[314168369,1708039844845,-151.0,0.00022191,2]
[314168371,1708039844855,-281.213023,0.00022191,2]
[314168373,1708039844864,-500.0,0.00022191,2]
[314168375,1708039844873,-1967.44,0.00022191,2]
[314168377,1708039844882,-500.0,0.00022191,2]
[314168379,1708039844891,-151.0,0.00022191,2]
[314168381,1708039844904,-236.331289,0.00022191,2]
[314168383,1708039844914,-502.53956151,0.00022191,2]
[314168385,1708039844923,-3098.38,0.00022191,2]
[314168387,1708039844933,-2101.9,0.00022191,2]
[314168389,1708039844942,-14803.19,0.00022191,2]
[314168391,1708039844951,-500.0,0.00022191,2]
[314168393,1708039844960,-2147.48,0.00022191,2]
[314168395,1708039844970,-500.0,0.00022191,2]
[314168397,1708039844979,-503.08737769,0.00022191,2]
[314168399,1708039844988,-500.0,0.00022191,2]
[314168401,1708039844998,-459.889157,0.00022191,2]
[314168403,1708039845007,-459.889157,0.00022191,2]
[314168405,1708039845016,-459.889157,0.00022191,2]
[314168407,1708039845025,-459.889157,0.00022191,2]
[314168409,1708039845035,-500.0,0.00022191,2]
[314168411,1708039845044,-500.0,0.00022191,2]
[314168413,1708039845053,-459.889157,0.00022191,2]
[314168415,1708039845063,-459.889157,0.00022191,2]
[314168417,1708039845073,-459.889157,0.00022191,2]
[314168419,1708039845082,-459.889157,0.00022191,2]
[314168421,1708039845091,-1478.7,0.00022191,2]
[314168423,1708039845100,-1000.0,0.00022191,2]
[314168425,1708039845109,-500.0,0.00022191,2]
[314168427,1708039845119,-500.0,0.00022191,2]
[314168429,1708039845127,-500.0,0.00022191,2]
[314168431,1708039845137,-947.27,0.00022191,2]
[314168433,1708039845145,-500.0,0.00022191,2]